lending/lending_fUSD_20250131
["ID","MTS","AMOUNT","RATE_DAILY","PERIOD"]
[351095355,1738331463615,-3425.97,0.00016986,2]
[351095356,1738331463625,-500.0,0.00016986,2]
[351095357,1738331463634,-1665.2,0.00016986,2]
[351095358,1738331463644,-500.0,0.00016986,2]
[351095359,1738331463653,-895.49,0.00016986,2]
[351095360,1738331463663,-816.67,0.00016986,2]
[351095361,1738331463672,-529.88,0.00016986,2]
[351095362,1738331463681,-1548.78,0.00016986,2]
[351095363,1738331463691,-1163.85,0.00016986,2]
[351095364,1738331463701,-500.0,0.00016986,2]
[351095365,1738331463711,-1306.7,0.00016986,2]
[351095366,1738331463721,-500.0,0.00016986,2]
[351095367,1738331463730,-4114.06,0.00016986,2]
[351095368,1738331463740,-632.40729553,0.00016986,2]
[351095369,1738331463750,-983.48,0.00016986,2]
[351095370,1738331463760,-500.0,0.00016986,2]
[351095371,1738331463769,-1271.81,0.00016986,2]
[351095372,1738331463779,-268.03589235,0.00016986,2]
[351095373,1738331463789,-638.61,0.00016986,2]
[351095374,1738331463798,-1339.53,0.00016986,2]
[351095375,1738331463808,-1223.81,0.00016986,2]
[351095376,1738331463817,-500.0,0.00016986,2]
[351095377,1738331463826,-500.0,0.00017122,2]
[351095378,1738331463835,-500.0,0.00017122,2]
[351095379,1738331463844,-500.0,0.00017122,2]
[351095380,1738331463853,-500.0,0.00017122,2]
[351095381,1738331463862,-500.0,0.00017122,2]
[351095382,1738331463872,-500.0,0.00017122,2]
[351095383,1738331463881,-500.0,0.00017122,2]
[351095384,1738331463891,-500.0,0.00017122,2]
[351095385,1738331463901,-500.0,0.00017122,2]
[351095386,1738331463911,-500.0,0.00017122,2]
[351095387,1738331463922,-500.0,0.00017122,2]
[351095388,1738331463933,-500.0,0.00017122,2]
[351095389,1738331463943,-500.0,0.00017122,2]
[351095390,1738331463952,-500.0,0.00017122,2]
[351095391,1738331463964,-500.0,0.00017122,2]
[351095392,1738331463975,-500.0,0.00017122,2]
[351095393,1738331463985,-617.282471,0.00017123,2]
[351095394,1738331463994,-529.48,0.00017123,2]
[351095395,1738331464004,-901.463894,0.00017123,2]
[351095396,1738331464014,-500.0,0.00017123,2]
[351095397,1738331464023,-500.0,0.00017123,2]
[351095398,1738331464032,-511.23,0.00017123,2]
[351095399,1738331464042,-500.0,0.00017123,2]
[351095400,1738331464051,-500.0,0.00017123,2]
[351095401,1738331464060,-500.0,0.00017123,2]
[351095402,1738331464069,-500.0,0.00017123,2]
[351095403,1738331464079,-500.0,0.00017123,2]
[351095404,1738331464089,-500.0,0.00017123,2]
[351095405,1738331464098,-500.0,0.00017123,2]
[351095406,1738331464108,-500.0,0.00017123,2]
[351095407,1738331464118,-500.0,0.00017123,2]
[351095408,1738331464128,-500.0,0.00017123,2]
[351095409,1738331464137,-500.0,0.00017123,2]
[351095410,1738331464146,-500.0,0.00017123,2]
[351095411,1738331464156,-500.0,0.00017123,2]
[351095412,1738331464165,-925.72,0.00017123,2]
[351095413,1738331464175,-500.0,0.00017123,2]
[351095414,1738331464184,-504.28,0.00017123,2]
[351095415,1738331464194,-500.0,0.00017123,2]
[351095416,1738331464204,-1000.75,0.00017123,2]
[351095417,1738331464216,-833.39,0.00017123,2]
[351095418,1738331464226,-500.0,0.00017123,2]
[351095419,1738331464235,-847.51,0.00017123,2]
[351095420,1738331464244,-642.66,0.00017123,2]
[351095421,1738331464253,-620.46,0.00017123,2]
[351095422,1738331464263,-500.0,0.00017123,2]
[351095423,1738331464273,-500.0,0.00017123,2]
[351095424,1738331464282,-710.95,0.00017123,2]
[351095425,1738331464292,-751.82,0.00017123,2]
[351095426,1738331464303,-500.0,0.00017123,2]
[351095427,1738331464313,-500.0,0.00017123,2]
[351095428,1738331464322,-707.01,0.00017123,2]
[351095429,1738331464332,-728.49,0.00017123,2]
[351095430,1738331464341,-500.0,0.00017123,2]
[351095431,1738331464351,-667.53,0.00017123,2]
[351095432,1738331464361,-688.95,0.00017123,2]
[351095433,1738331464370,-500.0,0.00017123,2]
[351095434,1738331464379,-500.0,0.00017123,2]
[351095435,1738331464389,-500.0,0.00017123,2]
[351095436,1738331464397,-1068.02,0.00017123,2]
[351095437,1738331464408,-553.27956364,0.00017123,2]
[351095438,1738331464417,-500.0,0.00017123,2]
[351095439,1738331464427,-500.0,0.00017123,2]
[351095440,1738331464436,-500.0,0.00017123,2]
[351095441,1738331464446,-500.0,0.00017123,2]
[351095442,1738331464455,-610.12,0.00017123,2]
[351095443,1738331464465,-614.16,0.00017123,2]
[351095444,1738331464475,-728.4,0.00017123,2]
[351095445,1738331464484,-500.0,0.00017123,2]
[351095446,1738331464493,-936.4,0.00017123,2]
[351095447,1738331464503,-1117.34,0.00017123,2]
[351095448,1738331464513,-619.78,0.00017123,2]
[351095449,1738331464522,-554.53,0.00017123,2]
[351095450,1738331464531,-647.75,0.00017123,2]
[351095451,1738331464540,-500.0,0.00017123,2]
[351095452,1738331464549,-1098.68,0.00017123,2]
[351095453,1738331464559,-625.34,0.00017123,2]
[351095454,1738331464568,-599.59,0.00017123,2]
[351095455,1738331464576,-1242.52,0.00017123,2]
[351095456,1738331464586,-668.66,0.00017123,2]
[351095457,1738331464595,-500.0,0.00017123,2]
[351095458,1738331464604,-879.23,0.00017123,2]
[351095459,1738331464613,-500.0,0.00017123,2]
[351095460,1738331464622,-500.0,0.00017123,2]
[351095461,1738331464633,-500.0,0.00017123,2]
[351095462,1738331464642,-500.0,0.00017123,2]
[351095463,1738331464651,-513.99,0.00017123,2]
[351095464,1738331464660,-568.63,0.00017123,2]
[351095465,1738331464669,-604.15,0.00017123,2]
[351095466,1738331464679,-1266.01,0.00017123,2]
[351095467,1738331464688,-505.52,0.00017123,2]
[351095468,1738331464697,-637.65,0.00017123,2]
[351095469,1738331464706,-500.0,0.00017123,2]
[351095470,1738331464715,-804.7,0.00017123,2]
[351095471,1738331464725,-500.0,0.00017123,2]
[351095472,1738331464733,-500.0,0.00017123,2]
[351095473,1738331464743,-500.0,0.00017123,2]
[351095474,1738331464752,-500.0,0.00017123,2]
[351095475,1738331464762,-714.34,0.00017123,2]
[351095476,1738331464772,-512.03,0.00017123,2]
[351095477,1738331464781,-506.21,0.00017123,2]
[351095478,1738331464791,-698.71,0.00017123,2]
[351095479,1738331464800,-598.32,0.00017123,2]
[351095480,1738331464809,-604.38,0.00017123,2]
[351095481,1738331464818,-500.0,0.00017123,2]
[351095482,1738331464827,-500.0,0.00017123,2]
[351095483,1738331464836,-500.0,0.00017123,2]
[351095484,1738331464845,-563.98,0.00017123,2]
[351095485,1738331464855,-903.25,0.00017123,2]
[351095486,1738331464863,-1045.44,0.00017123,2]
[351095487,1738331464872,-576.95,0.00017123,2]
[351095488,1738331464881,-753.7,0.00017123,2]
[351095489,1738331464889,-500.0,0.00017123,2]
[351095490,1738331464898,-500.0,0.00017123,2]
[351095491,1738331464907,-500.0,0.00017123,2]
[351095492,1738331464916,-574.63,0.00017123,2]
[351095493,1738331464929,-500.0,0.00017123,2]
[351095494,1738331464938,-500.0,0.00017123,2]
[351095495,1738331464947,-500.0,0.00017123,2]
[351095496,1738331464955,-500.0,0.00017123,2]
[351095497,1738331464966,-500.0,0.00017123,2]
[351095498,1738331464976,-500.0,0.00017123,2]
[351095499,1738331464985,-592.48,0.00017123,2]
[351095500,1738331464994,-665.35,0.00017123,2]
[351095501,1738331465004,-500.0,0.00017123,2]
[351095502,1738331465013,-500.0,0.00017123,2]
[351095503,1738331465021,-530.11,0.00017123,2]
[351095504,1738331465030,-647.27,0.00017123,2]
[351095505,1738331465039,-987.2,0.00017123,2]
[351095506,1738331465048,-905.39,0.00017123,2]
[351095507,1738331465057,-500.0,0.00017123,2]
[351095508,1738331465066,-506.19,0.00017123,2]
[351095509,1738331465075,-532.84,0.00017123,2]
[351095510,1738331465084,-500.0,0.00017123,2]
[351095511,1738331465093,-551.38,0.00017123,2]
[351095512,1738331465103,-654.39,0.00017123,2]
[351095513,1738331465112,-500.0,0.00017123,2]
[351095514,1738331465122,-548.68,0.00017123,2]
[351095515,1738331465133,-515.59,0.00017123,2]
[351095516,1738331465142,-622.39,0.00017123,2]
[351095517,1738331465151,-500.0,0.00017123,2]
[351095518,1738331465160,-161.35,0.00017123,2]
[351095519,1738331465169,-500.0,0.00017123,2]
[351095520,1738331465178,-500.0,0.00017123,2]
[351095521,1738331465188,-500.0,0.00017123,2]
[351095522,1738331465197,-658.0,0.00017123,2]
[351095523,1738331465206,-642.06,0.00017123,2]
[351095524,1738331465215,-500.0,0.00017123,2]
[351095525,1738331465224,-954.91,0.00017123,2]
[351095526,1738331465234,-500.0,0.00017123,2]
[351095527,1738331465243,-929.67,0.00017123,2]
[351095528,1738331465252,-809.48,0.00017123,2]
[351095529,1738331465262,-500.0,0.00017123,2]
[351095530,1738331465271,-665.8,0.00017123,2]
[351095531,1738331465280,-500.0,0.00017123,2]
[351095532,1738331465290,-503.66,0.00017123,2]
[351095533,1738331465299,-500.0,0.00017123,2]
[351095534,1738331465308,-500.0,0.00017123,2]
[351095535,1738331465318,-500.0,0.00017123,2]
[351095536,1738331465327,-1177.92,0.00017123,2]
[351095537,1738331465336,-500.0,0.00017123,2]
[351095538,1738331465346,-585.22,0.00017123,2]
[351095539,1738331465355,-741.83,0.00017123,2]
[351095540,1738331465364,-1143.7,0.00017123,2]
[351095541,1738331465374,-500.0,0.00017123,2]
[351095542,1738331465383,-500.0,0.00017123,2]
[351095543,1738331465393,-1123.38,0.00017123,2]
[351095544,1738331465403,-500.0,0.00017123,2]
[351095545,1738331465413,-3649.85,0.00017123,2]
[351095546,1738331465423,-687.76,0.00017123,2]
[351095547,1738331465433,-500.0,0.00017123,2]
[351095548,1738331465442,-500.0,0.00017123,2]
[351095549,1738331465451,-1730.6,0.00017123,2]
[351095550,1738331465460,-500.0,0.00017123,2]
[351095551,1738331465470,-500.0,0.00017123,2]
[351095552,1738331465479,-500.0,0.00017123,2]
[351095553,1738331465488,-1571.6,0.00017123,2]
[351095554,1738331465498,-1876.2,0.00017123,2]
[351095555,1738331465508,-620.89,0.00017123,2]
[351095556,1738331465518,-735.41,0.00017123,2]
[351095557,1738331465528,-1603.61,0.00017123,2]
[351095558,1738331465537,-1068.2,0.00017123,2]
[351095559,1738331465546,-500.0,0.00017123,2]
[351095560,1738331465555,-542.84,0.00017123,2]
[351095561,1738331465565,-786.27,0.00017123,2]
[351095562,1738331465574,-500.0,0.00017123,2]
[351095563,1738331465583,-500.0,0.00017123,2]
[351095564,1738331465593,-500.0,0.00017123,2]
[351095565,1738331465602,-739.89,0.00017123,2]
[351095566,1738331465611,-1000.0,0.00017123,2]
[351095567,1738331465621,-739.7,0.00017123,2]
[351095568,1738331465631,-536.25,0.00017123,2]
[351095569,1738331465641,-712.4,0.00017123,2]
[351095570,1738331465650,-956.81,0.00017123,2]
[351095571,1738331465659,-500.0,0.00017123,2]
[351095572,1738331465669,-860.82,0.00017123,2]
[351095573,1738331465678,-1196.83,0.00017123,2]
[351095574,1738331465687,-500.0,0.00017123,2]
[351095575,1738331465697,-516.86,0.00017123,2]
[351095576,1738331465707,-1377.77,0.00017123,2]
[351095577,1738331465717,-500.0,0.00017123,2]
[351095578,1738331465728,-829.0,0.00017123,2]
[351095579,1738331465740,-500.0,0.00017123,2]
[351095580,1738331465749,-1664.34,0.00017123,2]
[351095581,1738331465759,-500.0,0.00017123,2]
[351095582,1738331465768,-2818.25,0.00017123,2]
[351095583,1738331465778,-500.0,0.00017123,2]
[351095584,1738331465787,-782.42,0.00017123,2]
[351095585,1738331465796,-911.31,0.00017123,2]
[351095586,1738331465806,-599.89,0.00017123,2]
[351095587,1738331465815,-500.0,0.00017123,2]
[351095588,1738331465824,-1313.52,0.00017123,2]
[351095589,1738331465833,-918.57,0.00017123,2]
[351095590,1738331465842,-1388.21,0.00017123,2]
[351095591,1738331465852,-2575.37,0.00017123,2]
[351095592,1738331465861,-565.58,0.00017123,2]
[351095593,1738331465871,-500.0,0.00017123,2]
[351095594,1738331465881,-867.08,0.00017123,2]
[351095595,1738331465890,-746.6,0.00017123,2]
[351095596,1738331465899,-500.0,0.00017123,2]
[351095597,1738331465908,-628.99,0.00017123,2]
[351095598,1738331465918,-539.08,0.00017123,2]
[351095599,1738331465931,-500.0,0.00017123,2]
[351095600,1738331465941,-500.0,0.00017123,2]
[351095601,1738331465950,-632.37,0.00017123,2]
[351095602,1738331465959,-621.17,0.00017123,2]
[351095603,1738331465969,-1249.8,0.00017123,2]
[351095604,1738331465978,-533.09,0.00017123,2]
[351095605,1738331465987,-1138.51,0.00017123,2]
[351095606,1738331465996,-500.0,0.00017123,2]
[351095607,1738331466006,-1669.07,0.00017123,2]
[351095608,1738331466016,-76.91362884,0.00017123,2]
[351095609,1738331466304,-1125.04637116,0.00017123,2]
[351095610,1738331466313,-500.0,0.00017123,2]
[351095611,1738331466322,-573.56,0.00017123,2]
[351095612,1738331466332,-500.0,0.00017123,2]
[351095613,1738331466341,-492.38374745,0.00017123,2]
[351095614,1738331466351,-500.0,0.00017123,2]
[351095615,1738331466360,-500.0,0.00017123,2]
[351095616,1738331466370,-2175.56,0.00017123,2]
[351095617,1738331466379,-1109.12,0.00017123,2]
[351095618,1738331466388,-628.9,0.00017123,2]
[351095619,1738331466397,-817.41,0.00017123,2]
[351095620,1738331466406,-589.99,0.00017123,2]
[351095621,1738331466416,-1123.14,0.00017123,2]
[351095622,1738331466425,-730.15,0.00017123,2]
[351095623,1738331466435,-500.0,0.00017123,2]
[351095624,1738331466446,-500.0,0.00017123,2]
[351095625,1738331466456,-1589.69,0.00017123,2]
[351095626,1738331466466,-4466.76,0.00017123,2]
[351095627,1738331466476,-1096.5,0.00017123,2]
[351095628,1738331466485,-500.0,0.00017123,2]
[351095629,1738331466495,-500.0,0.00017123,2]
[351095630,1738331466504,-500.0,0.00017123,2]
[351095631,1738331466513,-500.0,0.00017123,2]
[351095632,1738331466522,-500.0,0.00017123,2]
[351095633,1738331466531,-811.64,0.00017123,2]
[351095634,1738331466540,-1038.63,0.00017123,2]
[351095635,1738331466550,-1714.39,0.00017123,2]
[351095636,1738331466559,-2383.87,0.00017123,2]
[351095637,1738331466569,-500.0,0.00017123,2]
[351095638,1738331466579,-500.0,0.00017123,2]
[351095639,1738331466588,-643.52,0.00017123,2]
[351095640,1738331466598,-653.94,0.00017123,2]
[351095641,1738331466608,-575.79,0.00017123,2]
[351095642,1738331466617,-1395.99318464,0.00017123,2]
[351095643,1738331466801,-500.0,0.00016438,2]
[351095644,1738331466811,-12.50681536,0.00017123,2]
[351095645,1738331466820,-579.23,0.00017123,2]
[351095646,1738331466830,-377.88026271,0.00017123,2]
[351095647,1738332086892,210.84,0.00010137,2]
[351095649,1738332346901,200.0,0.00010086,2]
[351095650,1738332565115,-4585.655886,0.000128,2]
[351095655,1738332632257,-500.04139326,0.000128,2]
[351095656,1738332632268,-356.15532581,0.000128,2]
[351095657,1738332632280,-3322.59159,0.000128,2]
[351095658,1738332632296,-11455.39614683,0.000128,2]
[351095659,1738332632305,-150.0,0.00012956,2]
[351095660,1738332632315,-1195.89,0.00013422,2]
[351095661,1738332632324,-150.0,0.0001408,2]
[351095662,1738332632339,-150.0,0.0001408,2]
[351095663,1738332632348,-1150.0,0.00015,2]
[351095664,1738332632358,-200.0,0.00015039,2]
[351095665,1738332632369,-23900.0,0.00015093,2]
[351095666,1738332632378,-250.0,0.00015098,2]
[351095667,1738332632388,-253.88,0.00015239,2]
[351095668,1738332632398,-912.11,0.00015334,2]
[351095669,1738332632408,-186.33,0.00015559,2]
[351095670,1738332632417,-1000.0,0.00015623,2]
[351095671,1738332632427,-1000.0,0.00015668,2]
[351095672,1738332632436,-1160.27488759,0.00015686,2]
[351095673,1738332632448,-35.61511241,0.00015686,2]
[351095674,1738332632458,-890.24,0.00015742,2]
[351095675,1738332632467,-175.64,0.00015755,2]
[351095676,1738332632477,-7333.0,0.0001579,2]
[351095677,1738332632486,-174.56,0.00015794,2]
[351095678,1738332632496,-1000.0,0.00015891,2]
[351095679,1738332632505,-255.0,0.00015994,2]
[351095680,1738332632514,-1526.44,0.00015995,2]
[351095681,1738332632524,-253.4582,0.00016237,2]
[351095682,1738332632534,-343.31628602,0.00016237,2]
[351095683,1738332632544,-921.0917,0.00016237,2]
[351095684,1738332632555,-2890.0664,0.00016237,2]
[351095685,1738332632564,-4345.5008,0.00016238,2]
[351095686,1738332632574,-905.4395,0.00016238,2]
[351095687,1738332632583,-1000.0,0.00016333,2]
[351095688,1738332632594,-36184.3016,0.00016337,2]
[351095689,1738332632603,-500.0,0.00016337,2]
[351095690,1738332632613,-934.9099,0.00016337,2]
[351095691,1738332632622,-14392.6689,0.00016337,2]
[351095692,1738332632632,-3665.28666684,0.00016338,2]
[351095693,1738332632642,-83432.7495,0.00016338,2]
[351095694,1738332632651,-5000.0,0.00016338,2]
[351095695,1738332632661,-3665.28666677,0.000164,2]
[351095696,1738332632670,-175.32638408,0.00016437,2]
[351095697,1738332632679,-500.0,0.00016437,2]
[351095698,1738332632688,-489.8006886,0.00016437,2]
[351095699,1738332632698,-830.877821,0.00016438,2]
[351095700,1738332632707,-563.454051,0.00016438,2]
[351095701,1738332632717,-500.0,0.00016438,2]
[351095702,1738332632726,-500.0,0.00016438,2]
[351095703,1738332632735,-500.0,0.00016438,2]
[351095704,1738332632744,-500.0,0.00016438,2]
[351095705,1738332632754,-500.0,0.00016438,2]
[351095706,1738332632764,-500.0,0.00016438,2]
[351095707,1738332632774,-159.506164,0.00016438,2]
[351095708,1738332632783,-500.0,0.00016438,2]
[351095709,1738332632793,-500.0,0.00016438,2]
[351095710,1738332632803,-532.5,0.00016438,2]
[351095711,1738332632812,-159.506154,0.00016438,2]
[351095712,1738332632822,-500.0,0.00016438,2]
[351095713,1738332632832,-153.065893,0.00016438,2]
[351095714,1738332632843,-500.0,0.00016438,2]
[351095715,1738332632852,-500.0,0.00016438,2]
[351095716,1738332632862,-500.0,0.00016438,2]
[351095717,1738332632871,-500.0,0.00016438,2]
[351095718,1738332632881,-500.0,0.00016438,2]
[351095719,1738332632891,-500.0,0.00016438,2]
[351095720,1738332632901,-615.54,0.00016438,2]
[351095721,1738332632911,-500.0,0.00016438,2]
[351095722,1738332632921,-500.0,0.00016438,2]
[351095723,1738332632930,-591.89,0.00016438,2]
[351095724,1738332632940,-500.0,0.00016438,2]
[351095725,1738332632950,-500.0,0.00016438,2]
[351095726,1738332632959,-514.16,0.00016438,2]
[351095727,1738332632969,-500.0,0.00016438,2]
[351095728,1738332632978,-500.0,0.00016438,2]
[351095729,1738332632988,-500.0,0.00016438,2]
[351095730,1738332632997,-500.0,0.00016438,2]
[351095732,1738332633006,-500.0,0.00016438,2]
[351095734,1738332633016,-500.0,0.00016438,2]
[351095736,1738332633026,-500.0,0.00016438,2]
[351095737,1738332633036,-1776.14,0.00016438,2]
[351095738,1738332633046,-544.05534482,0.00016438,2]
[351095739,1738332633056,-500.0,0.00016438,2]
[351095740,1738332633066,-500.0,0.00016438,2]
[351095741,1738332633076,-701.44,0.00016438,2]
[351095742,1738332633087,-500.0,0.00016438,2]
[351095743,1738332633098,-500.0,0.00016438,2]
[351095744,1738332633108,-500.0,0.00016438,2]
[351095745,1738332633120,-532.18,0.00016438,2]
[351095746,1738332633131,-625.29,0.00016438,2]
[351095747,1738332633141,-529.97,0.00016438,2]
[351095748,1738332633152,-500.0,0.00016438,2]
[351095749,1738332633162,-787.07,0.00016438,2]
[351095750,1738332633172,-500.0,0.00016438,2]
[351095751,1738332633182,-500.0,0.00016438,2]
[351095752,1738332633191,-864.56,0.00016438,2]
[351095753,1738332633201,-500.0,0.00016438,2]
[351095754,1738332633211,-500.0,0.00016438,2]
[351095755,1738332633221,-617.03,0.00016438,2]
[351095756,1738332633230,-500.0,0.00016438,2]
[351095757,1738332633239,-15.65116999,0.00016438,2]
[351095758,1738332633253,-484.34883001,0.00016438,2]
[351095759,1738332633262,-626.56,0.00016438,2]
[351095760,1738332633271,-613.97,0.00016438,2]
[351095761,1738332633280,-500.0,0.00016438,2]
[351095762,1738332633290,-500.0,0.00016438,2]
[351095763,1738332633299,-500.0,0.00016438,2]
[351095764,1738332633309,-624.27,0.00016438,2]
[351095765,1738332633319,-500.0,0.00016438,2]
[351095766,1738332633332,-500.0,0.00016438,2]
[351095767,1738332633342,-500.0,0.00016438,2]
[351095768,1738332633352,-1254.85,0.00016438,2]
[351095769,1738332633362,-500.0,0.00016438,2]
[351095770,1738332633372,-500.0,0.00016438,2]
[351095771,1738332633381,-500.0,0.00016438,2]
[351095772,1738332633390,-500.0,0.00016438,2]
[351095773,1738332633401,-500.0,0.00016438,2]
[351095774,1738332633410,-568.77,0.00016438,2]
[351095775,1738332633419,-500.0,0.00016438,2]
[351095776,1738332633428,-500.0,0.00016438,2]
[351095777,1738332633438,-500.0,0.00016438,2]
[351095778,1738332633447,-500.0,0.00016438,2]
[351095779,1738332633456,-500.0,0.00016438,2]
[351095780,1738332633465,-604.02822667,0.00016438,2]
[351095781,1738332633475,-500.0,0.00016438,2]
[351095782,1738332633485,-500.0,0.00016438,2]
[351095783,1738332633494,-989.64,0.00016438,2]
[351095784,1738332633503,-500.0,0.00016438,2]
[351095785,1738332633513,-500.0,0.00016438,2]
[351095786,1738332633523,-540.63,0.00016438,2]
[351095787,1738332633533,-511.81,0.00016438,2]
[351095788,1738332633542,-500.0,0.00016438,2]
[351095789,1738332633551,-1014.03,0.00016438,2]
[351095790,1738332633560,-643.04,0.00016438,2]
[351095791,1738332633569,-573.06,0.00016438,2]
[351095792,1738332633578,-500.0,0.00016438,2]
[351095793,1738332633587,-811.49,0.00016438,2]
[351095794,1738332633598,-627.26,0.00016438,2]
[351095795,1738332633607,-1032.97,0.00016438,2]
[351095796,1738332633617,-500.0,0.00016438,2]
[351095797,1738332633627,-616.35563631,0.00016438,2]
[351095798,1738332633636,-500.0,0.00016438,2]
[351095799,1738332633646,-500.0,0.00016438,2]
[351095800,1738332633655,-606.71,0.00016438,2]
[351095801,1738332633664,-598.75,0.00016438,2]
[351095802,1738332633674,-500.0,0.00016438,2]
[351095803,1738332633684,-551.91,0.00016438,2]
[351095804,1738332633693,-500.0,0.00016438,2]
[351095805,1738332633702,-168.146864,0.00016438,2]
[351095806,1738332633712,-500.0,0.00016438,2]
[351095807,1738332633721,-648.75,0.00016438,2]
[351095808,1738332633730,-1229.15,0.00016438,2]
[351095809,1738332633739,-500.0,0.00016438,2]
[351095810,1738332633749,-584.9,0.00016438,2]
[351095811,1738332633758,-500.0,0.00016438,2]
[351095812,1738332633767,-554.25,0.00016438,2]
[351095813,1738332633777,-500.0,0.00016438,2]
[351095814,1738332633786,-500.0,0.00016438,2]
[351095815,1738332633796,-500.0,0.00016438,2]
[351095816,1738332633805,-527.41,0.00016438,2]
[351095817,1738332633815,-500.0,0.00016438,2]
[351095818,1738332633824,-500.0,0.00016438,2]
[351095819,1738332633834,-500.0,0.00016438,2]
[351095820,1738332633844,-500.0,0.00016438,2]
[351095821,1738332634191,-500.0,0.00016438,2]
[351095822,1738332634201,-594.43580543,0.00016438,2]
[351095823,1738332634210,-524.82,0.00016438,2]
[351095824,1738332634219,-468.20476881,0.00016438,2]
[351095825,1738332634229,-500.0,0.00016438,2]
[351095826,1738332634238,-559.16,0.00016438,2]
[351095827,1738332634248,-500.0,0.00016438,2]
[351095828,1738332634257,-500.0,0.00016438,2]
[351095829,1738332634267,-500.0,0.00016438,2]
[351095830,1738332634277,-500.0,0.00016438,2]
[351095831,1738332634286,-500.0,0.00016438,2]
[351095832,1738332634296,-659.3,0.00016438,2]
[351095833,1738332634305,-500.0,0.00016438,2]
[351095834,1738332634315,-500.0,0.00016438,2]
[351095835,1738332634325,-500.0,0.00016438,2]
[351095836,1738332634338,-602.5,0.00016438,2]
[351095837,1738332634348,-500.0,0.00016438,2]
[351095838,1738332634358,-582.67,0.00016438,2]
[351095839,1738332634367,-500.0,0.00016438,2]
[351095840,1738332634376,-500.0,0.00016438,2]
[351095841,1738332634386,-500.0,0.00016438,2]
[351095842,1738332634396,-783.84,0.00016438,2]
[351095843,1738332634407,-153.065877,0.00016438,2]
[351095844,1738332634417,-500.0,0.00016438,2]
[351095845,1738332634427,-500.0,0.00016438,2]
[351095846,1738332634436,-502.11102467,0.00016438,2]
[351095847,1738332634446,-500.0,0.00016438,2]
[351095848,1738332634456,-500.0,0.00016438,2]
[351095849,1738332634466,-500.0,0.00016438,2]
[351095850,1738332634475,-500.0,0.00016438,2]
[351095851,1738332634484,-500.0,0.00016438,2]
[351095852,1738332634495,-500.0,0.00016438,2]
[351095853,1738332634504,-500.0,0.00016438,2]
[351095854,1738332634513,-500.0,0.00016438,2]
[351095855,1738332634522,-500.0,0.00016438,2]
[351095856,1738332634532,-679.77,0.00016438,2]
[351095857,1738332634541,-500.0,0.00016438,2]
[351095858,1738332634551,-729.4,0.00016438,2]
[351095859,1738332634560,-500.0,0.00016438,2]
[351095860,1738332634571,-500.0,0.00016438,2]
[351095861,1738332634580,-1018.33,0.00016438,2]
[351095862,1738332634589,-500.0,0.00016438,2]